Cogmind - Beta 14 @@@ ROGUE MODE // 2024.08.09 @ 15:33:57 Player: Dumalacath Result: Destroyed by ZR-3FO(R) with Subdweller Machine Gun Performance ------------- Evolutions (0) 0 Regions Visited (2) 400 Robots Destroyed (32) 160 Value Destroyed (736) 736 Prototype IDs (0) 0 Alien Tech Used (0) 0 Bonus (0) 0 TOTAL SCORE: 1296 Bonus ------- None Cogmind --------- Core Integrity 0/250 Matter 189/300 Energy 100/100 System Corruption 0% Temperature Cool (0) Movement Rolling (180) Ox7 Location -10/Subcaves Parts ------- > --- POWER (1) -------- (None) > --- PROPULSION (2) --- Subdweller Monowheel > --- UTILITY (2) ------ Cargo Storage Unit > --- WEAPON (2) ------- Assault Rifle Grenade Launcher > --- INVENTORY (30) --- Light Ion Engine Light Nuclear Core Light Treads Light Treads Light Treads Aluminum Leg Aluminum Leg Wheel Wheel Wheel Wheel Subdweller Monowheel Backup Propulsion I Backup Propulsion I Heat Sink Small Storage Unit Huge Storage Unit High-capacity Matter Pod (200) Signal Interpreter Seismic Detector Targeting Computer Tractor Beam Subdweller Laser Assault Rifle Assault Rifle Light Assault Rifle Scrap Shield Fragment (49) Scrap Shield Fragment (42) Scrap Shield Fragment (41) Peak State ------------ > --- POWER ------------ Light Nuclear Core > --- PROPULSION ------- Wheel Subdweller Monowheel > --- UTILITY ---------- Cargo Storage Unit > --- WEAPON ----------- Assault Rifle Assault Rifle > --- INVENTORY -------- Light Ion Engine Light Ion Engine Light Treads Light Treads Light Treads Aluminum Leg Aluminum Leg Wheel Wheel Wheel Wheel Compact Wheel Backup Propulsion I Backup Propulsion I Heat Sink Small Storage Unit Huge Storage Unit High-capacity Matter Pod Signal Interpreter Seismic Detector Seismic Detector Targeting Computer Tractor Beam Assault Rifle Light Assault Rifle Grenade Launcher Grenade Launcher Scrap Shield Fragment Scrap Shield Fragment [Rating: 13] Favorites ----------- Power Light Ion Engine Engine Light Ion Engine Power Core Light Nuclear Core Propulsion Wheel Treads Light Treads Wheel Wheel Hover Unit Backup Propulsion I Utility Cargo Storage Unit Device Seismic Detector Storage Cargo Storage Unit Weapon Assault Rifle Energy Gun Medium Laser Ballistic Gun Assault Rifle Launcher Grenade Launcher Build | -11 -10 -10 ------- Run | Yrd Mat Sub Slots Evolved . | . . . Power . | . . . Propulsion . | . . . Utility . | . . . Weapon . | . . . Parts Attached 35 | 7 22 6 Power 4 | 1 2 1 Engine 3 | 1 1 1 Core 1 | . 1 . Reactor . | . . . Propulsion 12 | 2 9 1 Treads 3 | . 3 . Leg . | . . . Wheel 9 | 2 6 1 Hover . | . . . Flight . | . . . Utility 3 | 2 1 . Device 1 | 1 . . Storage 2 | 1 1 . Processor . | . . . Hackware . | . . . Protection . | . . . Artifact . | . . . Weapon 16 | 2 10 4 Energy Gun 6 | 1 4 1 Energy Cannon . | . . . Ballistic Gun 3 | 1 2 . Ballistic Cannon . | . . . Launcher 7 | . 4 3 Special Weapon . | . . . Impact Weapon . | . . . Slashing Weapon . | . . . Piercing Weapon . | . . . Special Melee Weapon . | . . . Unidentified Prototypes . | . . . Parts Lost 10 | . 7 3 Power 3 | . 2 1 Propulsion 4 | . 3 1 Utility . | . . . Weapon 3 | . 2 1 Highest Loss Streak 3 | . 2 3 To Critical Strikes . | . . . Average Slot Usage (%) 82 | . 82 83 Engine 6 | . 6 7 Core 5 | . 5 6 Treads 1 | . 1 . Wheel 26 | . 25 27 Storage 14 | . 14 14 Energy Gun 6 | . 6 2 Ballistic Gun 20 | . 19 22 Launcher 1 | . . 2 Peak Build Rating 13 | 7 11 13 Average Rating 9 | 5 8 11 On Entrance 6 | . 7 11 Naked Turns . | . . . Heaviest Build 151 | 11 149 151 Greatest Support 30 | 26 26 30 Greatest Overweight (x) 14 | . 14 7 Average Overweight (x) 5 | . 5 5 Largest Inventory Capacity 30 | 8 30 30 Average Capacity 28 | 7 28 30 Most Carried 30 | 6 26 30 Average Carried 19 | 4 18 28 Final Capacity 30 | 8 30 30 Final Carried 29 | 6 26 29 Class Distribution -------------------- 91% | Hauler-Mutant 8% | Mutant Dominant Class ---------------- Hauler-Mutant | -10/Materials Hauler-Mutant | -10/Subcaves Resources | -11 -10 -10 ----------- Run | Yrd Mat Sub Matter Collected 1000 | 276 658 66 Remotely . | . . . Salvage Created 1076 | 55 892 129 Parts 62 | 2 47 13 Haulers Intercepted 1 | . 1 . Recyclers Shooed 4 | 1 3 . Parts Field Recycled . | . . . Retrieved Matter . | . . . Parts Self-Destructed 11 | . . 11 Prevented . | . . . Kills | -11 -10 -10 ------- Run | Yrd Mat Sub Combat Hostiles Destroyed 20 | . 16 4 Guns 11 | . 9 2 AOE 9 | . 7 2 Classes Destroyed 9 | 1 6 2 Worker 2 | . 2 . Tunneler 2 | 2 . . Hauler 1 | . 1 . Recycler 5 | . 5 . Watcher 2 | . 2 . Swarmer 4 | . 3 1 Grunt 13 | . 13 . Sentry 1 | . . 1 Subdweller 2 | . . 2 Best Kill Streak 4 | 2 4 2 Combat Bots Only 3 | . 3 2 Max Kills in Single Turn 2 | 1 2 1 Gunslinging . | . . . Exploded 2 | . 2 1 Melee . | . . . Uniques/NPCs Destroyed . | . . . Combat | -11 -10 -10 -------- Run | Yrd Mat Sub Hostile Shots Fired 109 | . 91 18 Missed 26 | . 23 3 Damage Taken 1278 | . 887 391 Core 271 | . 232 39 Absorbed by Shields . | . . . Regen/Repaired (Parts) 25 | . 25 . Core Remaining (%) 100 | 100 . . Volleys Fired 124 | 6 90 28 Largest 2 | 2 2 2 Hottest 70 | 60 70 60 Shots Fired 195 | 12 149 34 Gun 175 | 12 138 25 Cannon . | . . . Launcher 20 | . 11 9 Special . | . . . Kinetic 120 | 6 100 14 Thermal 55 | 6 38 11 Explosive 20 | . 11 9 Electromagnetic . | . . . Robot Hit Streak 9 | 3 9 8 Robot Miss Streak 4 | 2 4 1 Penetration Max . | . . . Secondary Targets 1 | . 1 . Max Gunslinging Chain 1 | . 1 . Shots Hit Robots 111 | 6 95 10 Core Hits 61 | 3 49 9 Critical Kills . | . . . Critical Parts Destroyed . | . . . Critical Strikes 1 | . 1 . Burn 1 | . 1 . Melee Attacks . | . . . Impact . | . . . Slashing . | . . . Piercing . | . . . Sneak Attacks . | . . . Combat Hostiles . | . . . Follow-up Attacks . | . . . Damage Inflicted 1906 | 62 1532 312 Guns 1100 | 62 905 133 Cannons . | . . . Explosions 806 | . 627 179 Melee . | . . . Ramming . | . . . Kinetic 745 | 20 592 133 Thermal 355 | 42 313 . Explosive 806 | . 627 179 Electromagnetic . | . . . Impact . | . . . Slashing . | . . . Piercing . | . . . Highest Corruption . | . . . Average Corruption . | . . . Corruption Purged . | . . . Corruption Blocked . | . . . Overload Shots . | . . . Overflow Damage 6 | . 6 . Projectiles . | . . . Explosions 6 | . 6 . Melee . | . . . Knockbacks . | . . . Impact . | . . . Kinetic . | . . . Secondary . | . . . Self-Inflicted Damage 90 | . 50 40 Shots 3 | . 2 1 Rammed . | . . . Targets Rammed . | . . . Kicked . | . . . Crushed . | . . . Highest Temperature 152 | 40 152 . Average Temperature 41 | 24 43 . Received Heat Transfer 474 | . 444 30 Siege Activations . | . . . Robots Corrupted . | . . . Combat Hostiles . | . . . Parts Fried . | . . . Impact Corruptions . | . . . Robots Melted . | . . . Combat Hostiles . | . . . Parts Melted . | . . . Heat Transferred 1099 | 100 999 . Parts Sabotaged . | . . . Parts Stolen . | . . . Parts Stripped . | . . . Power Chain Reactions . | . . . Alert | -11 -10 -10 ------- Run | Yrd Mat Sub Peak Influence 126 | 10 126 . Initial 6 | . 6 . Average 47 | 2 48 . Maximum Alert Level . | . . . Low Security (%) 100 | 100 100 . Level 1 . | . . . Level 2 . | . . . Level 3 . | . . . Level 4 . | . . . Level 5 . | . . . High Security . | . . . Max Security . | . . . Squads Dispatched 2 | . 2 . Investigation 1 | . 1 . Extermination . | . . . Reinforcement 1 | . 1 . Assault . | . . . Garrison . | . . . Intercept . | . . . Searches Triggered . | . . . Construction Impeded . | . . . Haulers Reinforced . | . . . Active Scanning Responses . | . . . Cargo Convoy Interrupts . | . . . Stealth | -11 -10 -10 --------- Run | Yrd Mat Sub Distress Signals 2 | . 2 . Communications Jammed . | . . . Distress Signals . | . . . Times Spotted 29 | . 25 4 Peak Tracking Total 3 | . 3 2 Tactical Retreats 4 | . 3 1 Traps | -11 -10 -10 ------- Run | Yrd Mat Sub Traps Triggered 1 | . 1 . Indirectly . | . . . Trap Hack Attempts . | . . . Triggered . | . . . Disarmed . | . . . Reprogrammed . | . . . Reused . | . . . Traps Extracted . | . . . Installed . | . . . Triggered . | . . . Machines | -11 -10 -10 ---------- Run | Yrd Mat Sub Machines Disabled 1 | . 1 . Max in Single Turn 1 | . 1 . Machines Repaired . | . . . Machines Dismantled . | . . . Machines Sabotaged . | . . . Overloaded Fab Kills . | . . . Hacking | -11 -10 -10 --------- Run | Yrd Mat Sub Machines Accessed 8 | . 8 . Terminals 7 | . 7 . Fabricators . | . . . Repair Stations 1 | . 1 . Recycling Units . | . . . Scanalyzers . | . . . Garrison Access . | . . . Total Hacks 22 | . 22 . Successful 17 | . 17 . Failed 4 | . 4 . Catastrophic . | . . . Database Lockouts 1 | . 1 . Manual 11 | . 11 . Terminals 18 | . 18 . Fabricators . | . . . Repair Stations 4 | . 4 . Recycling Units . | . . . Scanalyzers . | . . . Garrison Access . | . . . Terminal Hacks 8 | . 8 . Robot Analysis 2 | . 2 . Alert Level 2 | . 2 . Unreport Threat 1 | . 1 . Locate Traps 1 | . 1 . Zone Layout 2 | . 2 . Fabricator Hacks . | . . . Repair Station Hacks 3 | . 3 . Scan Component 1 | . 1 . Repair 1 | . 1 . Refit 1 | . 1 . Recycling Unit Hacks . | . . . Scanalyzer . | . . . Garrison Access Hacks . | . . . Unauthorized Hacks 6 | . 6 . Terminals 6 | . 6 . Botnet 6 | . 6 . Fabricators . | . . . Repair Stations . | . . . Recycling Units . | . . . Scanalyzers . | . . . Garrison Access . | . . . Data Cores Recovered . | . . . Used . | . . . Hacking Detections 7 | . 7 . Full Trace Events . | . . . Feedback Events . | . . . Feedback Blocked . | . . . Robot Schematics Acquired . | . . . Robots Built . | . . . Authchips . | . . . Time . | . . . Total Robot Build Rating . | . . . Part Schematics Acquired . | . . . Parts Built . | . . . Authchips . | . . . Time . | . . . Total Part Build Rating . | . . . Parts Repaired 1 | . 1 . Time 26 | . 26 . Parts Recycled . | . . . Recycled Matter . | . . . Retrieved Matter . | . . . Retrieved Components . | . . . Parts Scanalyzed . | . . . Part Schematics Acquired . | . . . Parts Damaged . | . . . Bothacking | -11 -10 -10 ------------ Run | Yrd Mat Sub Used RIF Installer . | . . . Robots Hacked . | . . . Non-combat . | . . . Combat . | . . . Robot Hacks Applied . | . . . Relay Couplers Released . | . . . Fabnet Peak Effective % . | . . . Robots Rewired . | . . . Allies Hacked . | . . . Hacks Repelled . | . . . Allies | -11 -10 -10 -------- Run | Yrd Mat Sub Total Allies . | . . . Largest Group . | . . . Highest-Rated Group . | . . . Highest-Rated Ally . | . . . Total Orders . | . . . Ally Attacks . | . . . Total Damage . | . . . Kills . | . . . Allies Corrupted . | . . . Allies Melted . | . . . Intel | -11 -10 -10 ------- Run | Yrd Mat Sub Robot Analysis Total 2 | . 2 . Derelict Logs Recovered . | . . . Drone Launches . | . . . Drone Recoveries . | . . . Exploration | -11 -10 -10 ------------- Run | Yrd Mat Sub Turns Passed 3569 | 87 3053 429 Spaces Moved 1420 | 60 1154 206 Core 1 | 1 . . Treads . | . . . Legs . | . . . Wheels 1419 | 59 1154 206 Hover . | . . . Flight . | . . . Fastest Speed 50 | 50 90 143 Average Speed 162 | 89 165 163 Slowest Speed 290 | 100 290 185 Overloaded Moves . | . . . Propulsion Burnouts . | . . . Robots Hopped . | . . . Cave-ins Triggered . | . . . Exploration Rate (%) 41 | 4 99 20 Regions Visited 2 Branch Regions 1 Pre-discovered Areas 1 | . . 1 Known Exits Taken . | . . . Unknown Exits Taken 2 | 1 1 . Scrap Searched . | . . . Spaces Dug . | . . . Terrain Destroyed 80 | . 47 33 Melee . | . . . Projectile . | . . . AOE 80 | . 47 33 Terrain Rammed . | . . . Walls Destroyed . | . . . Machines Disabled . | . . . Actions | -11 -10 -10 --------- Run | Yrd Mat Sub Total 2498 | 78 2154 266 Wait 869 | . 852 17 Move 1418 | 59 1153 206 Hop . | . . . Pick Up 40 | 6 28 6 Fast Attach 11 | 7 4 . Attach 7 | . 6 1 Detach 3 | . 3 . Swap 17 | . 12 5 Drop 9 | . 6 3 Fire 124 | 6 90 28 Melee . | . . . Ram . | . . . Kick . | . . . Crush . | . . . Escape Stasis . | . . . Rewire . | . . . Trap . | . . . Miscellaneous . | . . . Route ------- -11/Scrapyard -10/Materials (discovered 6 exits: [*Mat x3] / [*Min x2] / [*Sub]) -10/Subcaves (discovered 1 exit: [*Mat]) History --------- Turn | Location | Event 23 | -11/Scrapyard | Discovered new exit (range 16) 88 | -11/Scrapyard | Entered Materials 102 | -10/Materials | Discovered new exit (range 6) 203 | -10/Materials | Discovered new exit (range 6) 498 | -10/Materials | Discovered new exit (range 8) 591 | -10/Materials | Build established: Hauler-Mutant 772 | -10/Materials | Discovered new exit (range 6) 1457 | -10/Materials | Discovered new exit (range 4) 1672 | -10/Materials | Core integrity fell below 50% 1911 | -10/Materials | Repaired Wheel 2003 | -10/Materials | Core integrity fell below 20% 2771 | -10/Materials | Central database locked down 3103 | -10/Materials | Discovered new exit (range 5) 3141 | -10/Materials | Entered Subcaves 3160 | -10/Subcaves | Learned location of Zion (-6) 3160 | -10/Subcaves | Met a Zionite searching for "candidates" 3161 | -10/Subcaves | Discovered new exit (range 3) 3456 | -10/Subcaves | Shifting Twisted Machinery released Sub. Laser 3460 | -10/Subcaves | Shifting Twisted Machinery released Sub. Monowheel 3570 | -10/Subcaves | Destroyed by ZR-3FO(R) with Subdweller Machine Gun Last Messages --------------- 03422_ Lgt. Treads fries itself beyond repair. 03424_ S-10 Pest destroyed. 03435_ Lgt. Ion Engine fries itself beyond repair. 03439_ Flight Unit fries itself beyond repair. Sub. Laser falls loose from the Twisted Machinery. Sub. Monowheel falls loose from the Twisted Machinery. 03469_ Dropped Seismic Detector. 03470_ Acquired Sub. Laser. 03480_ QD-JT2(u) builds Twisted Machinery. 03498_ Dropped Com. Wheel. 03498_ Acquired Sub. Monowheel. 03505_ QD-JT2(u) builds Twisted Machinery. 03549_ Grenade Launcher destroyed. 03553_ Wheel destroyed. 03553_ 7Q-I6B(R) destroyed. 03564_ Sub. Power Source destroyed. 03566_ The unstable cave ceiling collapses. Map ----- +----------------------------------------------------+ | ????????????????## ##???????????????????????? | | ???????????????## =#????????????????????????? | | ??????????????## #????????????????????????? | | ??????????????#"" #????????????????????????? | | ??????????????##"" ##???????????????????????? | | ???????????????#"" #???????????????????????? | | ???????????????# " #???????????????????????? | | ???????????????# ""#???????????????????????? | | ???????????????## "##???????????????????????? | | ????????????????# "##???????????????????????? | | ????????????????#" #???????????????????????? | | ????????????????## #???????????????????????? | | ?????????????????# ##???????????????????????? | | ?????????????????# #????????????????????????? | | ????????????????## ##???????????????????????? | | ????????????????# #???????????????????????? | | ????????????????# #???????????????????????? | | ????????????????## #???????????????????????? | | ????????????????# #???????????????????????? | | ????????????????# ######???????????????????? | | ????????????????# ;;; #???????????????????? | | ????????????????#; ;; ##??????????????????? | | ????????????????# #??????????????????? | | ????????????????##; #??????????????????? | | ?????????????????#; ; ##??????????????????? | | ?????????????????# @ #???????????????????? | | ????????????????# ##???????????????????? | | ????????????????## #???????????????????? | | ?????????????????# #???????????????????? | | ?????????????????# #??????????????????? | | ????????????????? # #??????????????????? | | ???????????????? #??????????????????? | | ???????????????? #??????????????????? | | ???????????????## #??????????????????? | | ????????????????## ] #??????????????????? | | ????????????????? ??????????????????? | | ????????????????? R #??????????????????? | | ????????????????? # # #??????????????????? | | ????????????????? ?##?# ??????????????????? | | ??????????????????????? ???????????????????? | | ????????????????????????????????????????????? | | ????????????????????????????????????????????? | | ????????????????????????????????????????????? | | ????????????????????????????????????????????? | | ????????????????????????????????????????????? | | ????????????????????????????????????????????? | | ????????????????????????????????????????????? | | ????????????????????????????????????????????? | | ????????????????????????????????????????????? | | ????????????????????????????????????????????? | +----------------------------------------------------+ Best States ------------- Heat Dissipation 25 Energy Generation 15 Energy Capacity 200 Matter Stores 300 Matter Capacity 300 Sight Range 16 Terrain Scan Density 10 Evasion (%) 42 Recoil Reduction 1 Item Schematics ----------------- None Robot Schematics ------------------ None Fabricated ------------ Nothing Alien Tech Used ----------------- None Achievements -------------- Packrat Challenges ------------ None Game ------ Seed ExpertSapperWartreads Manual? 0 Play Time 00:22:54 Cumulative 77.2 hours Start 2024.08.09 @ 15:13:54 End 2024.08.09 @ 15:33:57 Sessions 1 Manual Loads 0 Difficulty Rogue Special Mode None Game No. 53 Rogue 53 Adventurer 0 Explorer 0 Win Type - Total 0 Types 0/0/0/0/0/0/0/0/0 Lore% 31 Gallery% 45 Achievement% 42 Wizard Run 0 Options --------- Layout 1 ASCII 0 Keyboard 0 Movement Numpad Keybinds 0 Fullscreen 2 Font 24/Smallcaps Map View 50x35 Zoom Use 0% Tactical HUD 1 Map Filters NONE Filters NONE Steam 1 RUN: 178c40e0-6ee4-4cfb-8009-279cce6cad4b